{"text_format":"1","workbook":"xlsx","n_sheets":6,"sheets":["1 Försättssida","2 Specifikation","3 Detaljerad kravspec. ","4 Avtalstecknande","Admin","SysAdmin"],"not_rendered":{"charts":0,"images":0,"macros":1,"external_links":1,"defined_names":138,"comments":0,"pivot_tables":0},"unopened":[],"bounds":{"document_bytes":16777216,"sheet_cells":100000,"rows_first":2000,"rows_last":500,"rows_between":2000,"halvings":0,"cell_chars":16384,"cell_head_chars":4096},"cells_cut":0,"cells_raw":0,"read":"whole","date_system":"1900"}

{"sheet":"1 Försättssida","index":0,"n_rows":24,"n_cols":1,"rows_kept":24,"cut":false,"hidden":false,"merged":[]}
[]
[]
[]
[]
[]
[]
[]
[]
[]
[]
[]
["Avropsförfrågan - förnyad konkurrens"]
["från statliga ramavtal inom området "]
["Tjänstefordon 2019"]
[]
["23.2-3666-19"]
[]
[]
[]
[]
["Avropsblankett"]
[]
[]
["Version 1.0"]

{"sheet":"2 Specifikation","index":1,"n_rows":182,"n_cols":24,"rows_kept":182,"cut":false,"hidden":false,"merged":[[104,17,104,18],[103,13,103,14],[99,13,99,14],[101,13,101,14],[98,10,99,12],[100,10,101,12],[102,10,103,12],[168,10,168,17],[175,10,176,17],[156,10,156,14],[121,13,121,14],[124,13,124,14],[119,13,119,14],[98,17,98,18],[121,1,121,10],[128,1,128,5],[142,1,142,5],[149,10,149,13],[148,1,148,5],[150,1,150,5],[141,1,141,5],[134,1,134,5],[144,1,144,5],[139,1,139,5],[177,10,177,17],[181,10,181,17],[182,10,183,17],[169,10,169,17],[170,10,170,17],[171,10,171,17],[178,10,178,17],[179,10,179,17],[171,1,171,8],[175,1,176,8],[168,1,168,8],[169,1,169,8],[170,1,170,8],[61,1,61,4],[85,10,85,13],[29,5,29,8],[45,1,45,5],[34,1,34,2],[70,10,73,14],[34,3,34,4],[35,1,35,2],[35,3,35,4],[157,1,162,5],[159,10,160,14],[157,10,157,13],[162,10,164,14],[140,1,140,5],[150,10,150,13],[161,10,161,14],[139,10,139,13],[149,1,149,5],[152,10,152,13],[151,10,151,13],[151,1,151,5],[24,10,24,17],[19,10,19,12],[19,13,19,15],[19,16,19,17],[20,10,20,12],[20,13,20,17],[21,10,21,12],[21,13,21,17],[17,10,17,13],[17,14,17,15],[17,16,17,17],[18,10,18,12],[18,13,18,15],[18,16,18,17],[13,16,13,17],[14,10,14,13],[14,14,14,17],[15,10,15,13],[15,14,15,17],[16,10,16,13],[16,14,16,15],[16,16,16,17],[59,3,59,4],[56,3,56,4],[57,3,57,4],[58,3,58,4],[54,3,54,4],[17,1,17,3],[17,4,17,6],[17,7,17,8],[18,1,18,3],[18,4,18,6],[18,7,18,8],[13,1,13,6],[13,7,13,8],[31,5,31,8],[32,5,32,8],[34,5,34,6],[2,10,2,12],[3,10,9,17],[12,10,12,15],[12,16,12,17],[13,10,13,15],[24,1,24,8],[31,1,31,2],[31,3,31,4],[32,1,32,2],[32,3,32,4],[28,1,28,2],[28,3,28,4],[28,5,28,8],[29,1,29,2],[29,3,29,4],[19,1,19,3],[19,4,19,6],[19,7,19,8],[20,1,20,3],[20,4,20,8],[21,1,21,3],[21,4,21,8],[16,4,16,6],[16,7,16,8],[14,1,14,3],[14,4,14,6],[14,7,14,8],[15,1,15,3],[15,4,15,6],[15,7,15,8],[16,1,16,3],[2,1,2,4],[3,1,9,8],[10,1,10,8],[11,1,11,8],[12,1,12,6],[12,7,12,8],[86,24,86,27],[119,1,119,10],[116,13,116,14],[102,17,102,18],[89,10,89,13],[89,1,89,3],[91,1,91,3],[133,1,133,5],[135,1,135,5],[132,1,132,5],[106,1,106,4],[106,17,106,18],[97,17,97,18],[109,17,109,18],[90,1,90,3],[96,10,97,12],[107,17,107,18],[94,13,94,14],[99,1,99,4],[88,1,88,3],[95,1,95,4],[96,1,96,4],[123,13,123,14],[120,1,120,10],[143,1,143,5],[56,1,59,2],[49,3,49,4],[92,17,92,18],[152,1,152,5],[156,1,156,5],[148,10,148,13],[136,1,136,5],[126,13,126,14],[102,1,102,4],[131,1,131,5],[115,13,115,14],[118,13,118,14],[106,10,106,14],[107,10,107,11],[107,1,107,4],[128,10,128,16],[131,10,131,13],[116,15,116,16],[107,13,107,14],[122,13,122,14],[122,1,122,10],[120,13,120,14],[118,1,118,10],[117,13,117,14],[115,1,115,4],[42,1,42,5],[100,1,100,4],[43,1,43,5],[39,1,39,5],[38,10,38,13],[41,1,41,5],[51,3,51,4],[52,3,52,4],[45,10,45,13],[64,10,64,14],[65,1,65,4],[50,3,50,4],[81,14,81,16],[94,10,95,12],[82,10,82,12],[83,10,83,12],[95,13,95,14],[82,15,82,16],[65,10,65,14],[45,15,45,18],[68,10,68,12],[69,10,69,12],[26,1,26,7],[26,10,26,17],[35,5,35,6],[34,7,34,8],[35,7,35,8],[49,1,54,2],[38,1,38,5],[40,1,40,5],[53,3,53,4],[97,13,97,14],[88,17,88,18],[83,15,83,16],[82,17,82,18],[85,17,85,18],[95,17,95,18],[89,17,89,18],[63,1,63,4],[82,1,83,5],[94,17,94,18],[91,10,92,10],[91,17,91,18],[69,1,73,3],[68,1,68,5],[92,1,92,3],[83,17,83,18]]}
[null,null,null,null,null,null,null,null,null,null,null,null,null,null,null,null,null,{"$f":"\"Avrop nr: \"&E20","v":"Avrop nr: "}]
[]
[null,"Avropsförfrågan ",null,null,null,null,null,null,null,null,"Avropssvar"]
[null,"Instruktion till avropande organisation: \nSpara ned blanketten på din dator.\nGulmarkerade rutor fylls i av avropare innan blanketten skickas.\n\nBlanketten skickas med e-post till antagna leverantörer inom aktuellt avropsområde.\nSe vidare \"Vägledning vid avrop\".",null,null,null,null,null,null,null,null,"Instruktion till leverantör:\nBlåmarkerade rutor fylls i av leverantören.\nLäs och kontrollera obligatoriska krav.\nReturnera blanketten med e-post till avropande organisation (oavsett Ja eller Nej)."]
[]
[]
[]
[]
[]
[]
[]
[null,"Uppgifter om avropande organisation",null,null,null,null,null,null,null,null,"Uppgifter om Ramavtalsleverantören"]
[null,"Myndighet/Organisation (namn)",null,null,null,null,null,"Organisationsnummer",null,null,"Ramavtalsleverantörens namn",null,null,null,null,null,"Organisationsnummer"]
[]
[null,"Postadress",null,null,"Postnummer",null,null,"Ort",null,null,"Kontaktperson",null,null,null,"E-Post"]
[]
[null,"Avdelning, enhet etc",null,null,"Fakturaref.",null,null,"Mottagare för E-faktura",null,null,"Postadress",null,null,null,"Postnummer",null,"Ort"]
[]
[null,"Kontaktperson",null,null,"Ref/diarie -num för avropet",null,null,"Ev. kundnummer",null,null,"Telefon",null,null,"Ramavtalsnummer",null,null,"Offertnummer el likn för detta avropssvar"]
[]
[null,"Telefon",null,null,"E-post",null,null,null,null,null,"Avropssvar lämnas Ja/Nej",null,null,"Om Nej, motivering\n(Information ska även skickas till statens inköpscentral)"]
[null,null,null,null,null,null,null,null,null,null,"Ja"]
[]
[null,"Information om avropet t ex syfte och omfattning",null,null,null,null,null,null,null,null,"Uppgifter om underleverantör/återförsäljare (om aktuellt)"]
[]
[null,"Förnyad kontroll av leverantörskrav (ESPD)",null,null,null,null,null,null,null,null,"Leverantörskrav (ESPD) - Ramavtalsleverantörens intygande"]
[null,"Av 15 kap. 1 samt 4 §§ LOU framgår att ramavtalsleverantören ska lämna en ny egenförsäkran samt att en ny kontroll av kvalificeringskrav och uteslutningsgrunder ska genomföras vid avrop genom förnyad konkurrensutsättning. Kammarkollegiet ansvarar för denna kontrollskyldighet genom att löpande genomföra leverantörsprövning under hela ramavtalsperioden. \nKontrollskyldigheten bör också hanteras så att ramavtalsleverantören i sitt avropssvar bekräftar att i ramavtalsupphandlingen lämnad egenförsäkran fortfarande är korrekt, samt att ingivna bevis fortfarande är aktuella. Avropande myndighet kan själv begära in ett eller flera bevis enligt punkten 2 till höger.",null,null,null,null,null,null,null,null,"Genom att lämna avropssvar, bekräftar ramavtalsleverantören följande:\n1.\tAtt i ramavtalsupphandlingen lämnad egenförsäkran fortfarande är korrekt.\n2.\tAtt i ramavtalsupphandlingen ingivna bevis, såsom Sanningsförsäkran avseende uteslutningsgrunder (gällande leverantören och ev. åberopade företag) fortfarande aktuella.\n3.\tAtt ramavtalsleverantören har säkerställt att ev. åberopade företag inte omfattas av någon uteslutningsgrund.\nMed \"åberopat företag\" avses specifikt en underleverantör som har åberopats i ramavtalsupphandlingen för att uppfylla krav på ekonomisk, teknisk och yrkesmässig kapacitet”."]
[null,null,"Obs att tidsfristen måste vara skälig med hänsyn till avropets karaktär."]
[null,"Sista datum för frågor",null,"Sista datum för svar på frågor",null,"E-post för frågor (om annan än ovan)"]
[]
[]
[null,"Sista dag för avropssvar",null,"Avropssvarets giltighetstid",null,"Alternativa avropssvar accepteras (Ja/Nej)"]
[]
[]
[null,"Kontraktets längd: antal månader",null,"Förlägningsoption:\nAntal månader",null,"Planerat startdatum för kontraktet",null,"Avtalsspärr efter tilldelning kommer att iakttas (Ja/Nej)"]
[]
[]
[null,"Stationeringsort/er",null,null,null,null,null,null,null,null,"Stationeringsort/er"]
[null,"Ange  de olika stationeringsorterna för avropade fordon. ",null,null,null,null,null,null,null,null,"Kravet accepteras?",null,null,null,null,null,null,null,null,null,null,null,{"$f":"IF(OR(W40:W44),\"Nej\",\"Ja\")","v":"Ja"},{"$f":"NOT(OR(X40:X44))","v":true}]
[null,null,null,null,null,null,null,null,null,null,null,null,null,null,null,null,null,null,null,null,null,null,{"$f":"IF(AND(B40<>\"\",$O$39<>\"Ja\"),TRUE,FALSE)","v":false},{"$f":"IF(B40<>\"\",TRUE,FALSE)","v":false}]
[null,null,null,null,null,null,null,null,null,null,null,null,null,null,null,null,null,null,null,null,null,null,{"$f":"IF(AND(B41<>\"\",$O$39<>\"Ja\"),TRUE,FALSE)","v":false},{"$f":"IF(B41<>\"\",TRUE,FALSE)","v":false}]
[null,null,null,null,null,null,null,null,null,null,null,null,null,null,null,null,null,null,null,null,null,null,{"$f":"IF(AND(B42<>\"\",$O$39<>\"Ja\"),TRUE,FALSE)","v":false},{"$f":"IF(B42<>\"\",TRUE,FALSE)","v":false}]
[null,null,null,null,null,null,null,null,null,null,null,null,null,null,null,null,null,null,null,null,null,null,{"$f":"IF(AND(B43<>\"\",$O$39<>\"Ja\"),TRUE,FALSE)","v":false},{"$f":"IF(B43<>\"\",TRUE,FALSE)","v":false}]
[null,null,null,null,null,null,null,null,null,null,null,null,null,null,null,null,null,null,null,null,null,null,{"$f":"IF(AND(B44<>\"\",$O$39<>\"Ja\"),TRUE,FALSE)","v":false},{"$f":"IF(B44<>\"\",TRUE,FALSE)","v":false}]
[]
[null,"Krav på fordon",null,null,null,null,null,null,null,null,"Leverantörens avropssvar"]
[null,"Fylls i på blad 3 Detaljerad kravspec.",null,null,null,null,null,null,null,null,{"$f":"IF(OR(W39:W93,W132:W157),\"Minst ett av de obligatoriska kraven är inte ifyllda eller besvarade med Nej\",\"\")","v":""}]
[]
[null,"Följande fordonsklasser kan offereras"]
[null,"Personbilar (fordonsklass A-E)",null,"A: Personbil med tjänstevikt upp till 1200 kg."]
[null,null,null,"B: Personbil med tjänstevikt mellan 1201 - 1450 kg."]
[null,null,null,"C: Personbil med tjänstevikt mellan 1451 - 1600 kg."]
[null,null,null,"D: Personbil med tjänstevikt från 1601 kg eller mer."]
[null,null,null,"E1: Personbil eldrift"]
[null,null,null,"E2: Personbil laddhybrid (laddas via elnätet)"]
[]
[null,"Transportfordon (fordonsklass F-I)",null,"F: Lätt lastbil med flak eller chassi med eller utan påbyggnad."]
[null,null,null,"G: Pick-up med 4WD och förhöjd markfrigång."]
[null,null,null,"H: Skåpbilar med enkel- eller dubbelhytt."]
[null,null,null,"I: Minibussar med minst 6 passagerarplatser utöver förarplatsen. (ej femsitsiga fordon med enkla uppfällbara säten)"]
[]
[null,"Antal fordon"]
[]
[null,"Service ska ingå för avropade fordon (Ja/Nej)"]
[null,null,null,null,null,null,null,null,null,null,"Specifika fordonskrav "]
[null,"Specifika krav enl detaljerad kravspecifikation (ja/nej)",null,null,null,null,null,null,null,null,"Om ja, fyll i specifika krav på blad 3 Detaljerad kravspec."]
[]
[null,null,null,null,null,null,null,null,null,null,null,null,null,null,null,null,null,null,null,null,{"$f":"IF(ISERROR(VLOOKUP($N$70,$U$70:$U$74,1,0)),\"Nej\",\"Ja\")","v":"Nej"},{"$f":"OR(V70:V74)","v":false},{"$f":"IF(V68,IF(ISERROR(VLOOKUP($N$70,$U$70:$U$74,1,0)),TRUE,FALSE),FALSE)","v":false}]
[null,"Accepterade drivmedel",null,null,null,null,null,null,null,null,"Offererade drivmedel",null,null,"Drivmedel 1","Drivmedel 2",null,null,null,null,null,{"$f":"IF(ISERROR(VLOOKUP($O$70,$U$70:$U$74,1,0)),\"Nej\",\"Ja\")","v":"Nej"},null,{"$f":"IF(V70,IF(ISERROR(VLOOKUP($O$70,$U$70:$U$74,1,0)),TRUE,FALSE),FALSE)","v":false}]
[null,"Följande drivmedel får erbjudas\n(avser drivmedel 1 och 2)",null,null,"Bensin",null,null,null,null,null,"Drivmedel för offererat fordon",null,null,null,null,null,{"$f":"IF(V68,IF(ISERROR(VLOOKUP($N$70,$U$70:$U$74,1,0)),\"Drivmedel 1 uppfyller inte kravet\",\"\"),\"\")","v":""},null,null,null,{"$f":"IF(F70=\"Ja\",E70,\"\")","v":""},{"$f":"F70<>\"\"","v":false}]
[null,null,null,null,"Diesel",null,null,null,null,null,"I de fall leverantören lämnar avropssvar med flera drivmedelalternativ (om detta tillåts) skall en blankett per alternativ skickas in",null,null,null,null,null,{"$f":"IF(V70,IF(ISERROR(VLOOKUP($O$70,$U$70:$U$74,1,0)),\"Drivmedel 2 uppfyller inte kravet\",\"\"),\"\")","v":""},null,null,null,{"$f":"IF(F71=\"Ja\",E71,\"\")","v":""},{"$f":"F71<>\"\"","v":false}]
[null,null,null,null,"Etanol",null,null,null,null,null,null,null,null,null,null,null,null,null,null,null,{"$f":"IF(F72=\"Ja\",E72,\"\")","v":""},{"$f":"F72<>\"\"","v":false}]
[null,null,null,null,"El",null,null,null,null,null,null,null,null,null,null,null,null,null,null,null,{"$f":"IF(F73=\"Ja\",E73,\"\")","v":""},{"$f":"F73<>\"\"","v":false}]
[null,null,null,null,"Gas",null,null,null,null,null,null,null,null,null,null,null,null,null,null,null,{"$f":"IF(F74=\"Ja\",E74,\"\")","v":""},{"$f":"F74<>\"\"","v":false}]
[]
[]
[]
[]
[]
[]
[null,null,null,null,null,null,null,null,null,null,"Anskaffningspris exkl moms per fordon men med volymrabatt baserat på offererat antal fordon"]
[null,"Beräkning av LCC-kostnad",null,null,null,null,null,null,null,null,null,null,null,null,"Rabatt"]
[null,"Se vägledningen punkt 3.1.5 för instruktion",null,null,null,null,null,null,null,null,"Offererat fordon",null,null,"Pris/st\nNetto","Grundfordon\n(endast info)","Fabriksmont. Utrustning\n(endast info)",null,"Pris/fordon"]
[null,null,null,null,null,null,null,null,null,null,null,null,null,null,null,null,null,{"$f":"Input47","v":0}]
[]
[null,null,null,null,null,null,null,null,null,null,"Ev skattesubvention",null,null,null,null,null,"Totalt: ",{"$f":"R84-Input49","v":0}]
[null,"Kalkylfaktorer LCC, drivmedel"]
[null,"Drivmedel",null,null,"Kalkylpris","Enhet"]
[null,"Bensin",null,null,16,"lit",{"$f":"IF(AND(F70=\"Ja\",E89=\"\"),\"OBS! drivmedelspris för \"&B89&\" måste anges\",\"\")","v":""},null,null,null,null,null,null,null,null,null,null,"Driftkostnad / fordon och år"]
[null,"Diesel",null,null,null,"lit",{"$f":"IF(AND(F71=\"Ja\",E90=\"\"),\"OBS! drivmedelspris för \"&B90&\" måste anges\",\"\")","v":""},null,null,null,"Ev. leasingkiostnad / månad för batteri (endast el)",null,null,null,null,null,null,{"$f":"O90*12","v":0}]
[null,"Etanol",null,null,null,"lit",{"$f":"IF(AND(F72=\"Ja\",E91=\"\"),\"OBS! drivmedelspris för \"&B91&\" måste anges\",\"\")","v":""},null,null,null,{"$f":"IF(AND($N$71<>\"\",$L$93=\"El\"),\"OBS! El-/Laddhybrider ska beräknas på bensin/diesel/etanol\",\"\")","v":""}]
[null,"El",null,null,null,"Kwh",{"$f":"IF(AND(F73=\"Ja\",E92=\"\"),\"OBS! drivmedelspris för \"&B92&\" måste anges\",\"\")","v":""},null,null,null,"Driftkostn.","Drivmedel","Förbruk.\n/mil","Enhet","Pris/enhet",null,null,"Drivmedelskostnad / fordon och år"]
[null,"Gas",null,null,null,"Kg",{"$f":"IF(AND(F74=\"Ja\",E93=\"\"),\"OBS! drivmedelspris för \"&B93&\" måste anges\",\"\")","v":""},null,null,null,null,null,null,{"$f":"IF(ISERROR(VLOOKUP(L93,TblDrivmedelkost,5,0)),\"\",VLOOKUP(L93,TblDrivmedelkost,5,0))","v":""},{"$f":"IF(ISERROR(VLOOKUP(L93,B88:F93,4,0)),\"\",VLOOKUP(L93,B88:F93,4,0))","v":""},null,null,{"$f":"IF(ISERROR(M93*F101*O93),0,M93*F101*O93)","v":0}]
[]
[null,null,null,null,null,null,null,null,null,null,"Underhållskostnad \nGenomsnittlig kost./år för basservice enligt tillverkarens garantivillkor och utförd på stationeringsort.",null,null,"Servicekostnad\nexkl moms/år",null,null,null,"Underhåll / fordon och år"]
[null,"Antal användningsår",null,null,null,null,null,null,null,null,null,null,null,null,null,null,null,{"$f":"N96","v":0}]
[null,"Kalkylränta",null,null,null,null,null,null,null,null,"Fordonsskatt",null,null,"Fordonsskatt år 1"]
[null,null,null,null,null,null,null,null,null,null,null,null,null,null,null,null,null,"Fordonsskatt / fordon och år i genomsnitt"]
[null,null,null,null,null,null,null,null,null,null,"Fordonsskatt",null,null,"Fordonsskatt år 2",null,null,null,{"$f":"IFERROR((Input61+N100+N102+(N104*(F96-3)))/F96,0)","v":0}]
[null,"Årlig körsträcka",null,null,null,"Antal mil/år"]
[null,null,null,null,null,null,null,null,null,null,"Fordonsskatt",null,null,"Fordonsskatt år 3"]
[]
[null,null,null,null,null,null,null,null,null,null,"Fordonsskatt",null,null,"Fordonsskatt år 4-",null,null,"Summa årlig kostnad:",{"$f":"SUM(R89:S99)","v":0}]
[null,"Restvärde, värde vid användningsperiodens slut1"]
[null,null,"Alt 1, Avropande org. uppskattar ett restvärde efter användningsperiodens slut.",null,null,null,null,null,null,null,null,null,null,null,null,null,{"$f":"\"Nuvärdesberäkning av kostnader (\"&F96&\" år): \"","v":"Nuvärdesberäkning av kostnader ( år): "},{"$f":"-PV(KlkRta,F96,Input68)","v":0}]
[null,null,"Alt 2, Leverantören anger ett garanterat återköpsvärde efter användningsperiodens slut."]
[null,"Restvärde, värde vid användningsperiodens slut",null,null,null,"%",null,null,null,null,"Återköpsvärde, %",null,null,null,null,null,null,"Restvärdets nuvärde"]
[null,{"$f":"IF(AND(Admin!$H$14=2,$F$108<>\"\"),\"Restvärde anges ej av avropade org vid alternativ 2 ovan\",\"\")","v":""},null,null,null,null,null,null,null,null,"Av leverantören garanterat  (1)",null,null,{"$f":"N84*IF(RestType=1,Input56,Input55)","v":0},null,null,null,{"$f":"-PV(KlkRta,F96,,N108)","v":0},{"$f":"-PV(S86*0.01,#REF!,,S106)","v":{"$error":"#REF!"}}]
[null,"1. Garanterat återköpsvärde vid normal användning och normalt slitage. Ev avdrag för skador eller övermil kan komma att påverka återköpsvärdet.\n"]
[null,null,null,null,null,null,null,null,null,null,null,null,null,null,null,null,"Total LCC-kostnad/fordon för angivet antal år (nuvärdesberäknat): ",{"$f":"SUM(R105,R86,-R108)","v":0}]
[]
[]
[]
[]
[null,"Sammanställning - kravuppfyllnad och utvärderingskostnad"]
[null,"Transport från ovan samt blad 3 Detaljerad kravspec. ",null,null,null,null,null,null,null,null,null,"Ska-krav","Ska.krav","Utvärderingskostnad"]
[null,null,null,null,null,null,null,null,null,null,null,"finns","Uppfyllt",null,null,null,null,null,null,null,null,null,{"$f":"IF(OR(W119:W123),\"nej\",\"Ja\")","v":"Ja"}]
[null,"1. LCC kostnad el ovan",null,null,null,null,null,null,null,null,null,null,null,{"$f":"R110","v":0}]
[null,"2. Säkerhet",null,null,null,null,null,null,null,null,null,{"$f":"'3 Detaljerad kravspec. '!M30","v":"Nej"},{"$f":"IF(L119=\"Nej\",\"\",'3 Detaljerad kravspec. '!K30)","v":""},{"$f":"-Input72","v":0},null,null,null,null,null,null,null,null,{"$f":"IF(AND(L119=\"Ja\",M119<>\"Ja\"),TRUE,FALSE)","v":false}]
[null,"3. Miljö",null,null,null,null,null,null,null,null,null,{"$f":"'3 Detaljerad kravspec. '!M50","v":"Nej"},{"$f":"IF(L120=\"Nej\",\"\",'3 Detaljerad kravspec. '!K50)","v":""},{"$f":"-'3 Detaljerad kravspec. '!I51","v":0},null,null,null,null,null,null,null,null,false]
[null,"4. Teknik och funktioner",null,null,null,null,null,null,null,null,null,{"$f":"'3 Detaljerad kravspec. '!M93","v":"Nej"},{"$f":"IF(L121=\"Nej\",\"\",'3 Detaljerad kravspec. '!K93)","v":""},{"$f":"-'3 Detaljerad kravspec. '!I94","v":0},null,null,null,null,null,null,null,null,false]
[null,"5. Garantier",null,null,null,null,null,null,null,null,null,{"$f":"'3 Detaljerad kravspec. '!M64","v":"Nej"},{"$f":"IF(L122=\"Nej\",\"\",'3 Detaljerad kravspec. '!K64)","v":""},{"$f":"-'3 Detaljerad kravspec. '!I65","v":0},null,null,null,null,null,null,null,null,false]
[null,"6. Levereranstid",null,null,null,null,null,null,null,null,null,{"$f":"'3 Detaljerad kravspec. '!M108","v":"Nej"},{"$f":"IF(L123=\"Nej\",\"\",'3 Detaljerad kravspec. '!K108)","v":""},{"$f":"-'3 Detaljerad kravspec. '!I109","v":0},null,null,null,null,null,null,null,null,false]
[null,"7. Serviceställen",null,null,null,null,null,null,null,null,null,{"$f":"'3 Detaljerad kravspec. '!M123","v":"Nej"},{"$f":"IF(L124=\"Nej\",\"\",'3 Detaljerad kravspec. '!K123)","v":""},{"$f":"-'3 Detaljerad kravspec. '!I124","v":0},null,null,null,null,null,null,null,null,false]
[null,null,null,null,null,null,null,null,null,null,null,null,"Summa utvärderingskostnad per fordon: ",{"$f":"SUM(N118:O124)","v":0}]
[]
[null,null,null,null,null,null,null,null,null,null,null,null,"Summa utvärderingskostnad för avropet (Utvärderas): ",{"$f":"N125*F62","v":0}]
[]
[null,"Leverans",null,null,null,null,null,null,null,null,"Leverans"]
[]
[null,"Leveransadress/er",null,null,null,null,null,null,null,null,"Leveransadress/er"]
[null,"Ange  de olika leveransadresserna för fordonen. ",null,null,null,null,null,null,null,null,"Kravet accepteras?",null,null,null,null,null,null,null,null,null,null,null,{"$f":"IF(OR(W133:W137),\"Nej\",\"Ja\")","v":"Ja"},{"$f":"NOT(OR(X133:X137))","v":true}]
[null,null,null,null,null,null,null,null,null,null,null,null,null,null,null,null,null,null,null,null,null,null,{"$f":"IF(AND(B133<>\"\",$O$132<>\"Ja\"),TRUE,FALSE)","v":false},{"$f":"IF(B133<>\"\",TRUE,FALSE)","v":false}]
[null,null,null,null,null,null,null,null,null,null,null,null,null,null,null,null,null,null,null,null,null,null,{"$f":"IF(AND(B134<>\"\",$O$132<>\"Ja\"),TRUE,FALSE)","v":false},{"$f":"IF(B134<>\"\",TRUE,FALSE)","v":false}]
[null,null,null,null,null,null,null,null,null,null,null,null,null,null,null,null,null,null,null,null,null,null,false,{"$f":"IF(B135<>\"\",TRUE,FALSE)","v":false}]
[null,null,null,null,null,null,null,null,null,null,null,null,null,null,null,null,null,null,null,null,null,null,false,{"$f":"IF(B136<>\"\",TRUE,FALSE)","v":false}]
[null,null,null,null,null,null,null,null,null,null,null,null,null,null,null,null,null,null,null,null,null,null,false,{"$f":"IF(B137<>\"\",TRUE,FALSE)","v":false}]
[]
[null,"Fakturaadress/er",null,null,null,null,null,null,null,null,"Fakturaadress/er"]
[null,"Ange  de olika fakturaadresserna för fordonen om annan än avropande organisations postadress. ",null,null,null,null,null,null,null,null,"Kravet accepteras?",null,null,null,null,null,null,null,null,null,null,null,{"$f":"IF(OR(W141:W145),\"Nej\",\"Ja\")","v":"Ja"},{"$f":"NOT(OR(X141:X145))","v":true}]
[null,null,null,null,null,null,null,null,null,null,null,null,null,null,null,null,null,null,null,null,null,null,{"$f":"IF(AND(B141<>\"\",$O$140<>\"Ja\"),TRUE,FALSE)","v":false},{"$f":"IF(B141<>\"\",TRUE,FALSE)","v":false}]
[null,null,null,null,null,null,null,null,null,null,null,null,null,null,null,null,null,null,null,null,null,null,{"$f":"IF(AND(B142<>\"\",$O$140<>\"Ja\"),TRUE,FALSE)","v":false},{"$f":"IF(B142<>\"\",TRUE,FALSE)","v":false}]
[null,null,null,null,null,null,null,null,null,null,null,null,null,null,null,null,null,null,null,null,null,null,{"$f":"IF(AND(B143<>\"\",$O$140<>\"Ja\"),TRUE,FALSE)","v":false},{"$f":"IF(B143<>\"\",TRUE,FALSE)","v":false}]
[null,null,null,null,null,null,null,null,null,null,null,null,null,null,null,null,null,null,null,null,null,null,{"$f":"IF(AND(B144<>\"\",$O$140<>\"Ja\"),TRUE,FALSE)","v":false},{"$f":"IF(B144<>\"\",TRUE,FALSE)","v":false}]
[null,null,null,null,null,null,null,null,null,null,null,null,null,null,null,null,null,null,null,null,null,null,{"$f":"IF(AND(B145<>\"\",$O$140<>\"Ja\"),TRUE,FALSE)","v":false},{"$f":"IF(B145<>\"\",TRUE,FALSE)","v":false}]
[]
[]
[null,"Bilagor:",null,null,null,null,null,null,null,null,"Bilagor:"]
[null,"Ange ev.  krav på bilagor tex intyg från leverantören",null,null,null,null,null,null,null,null,"Kravuppfyllnad",null,null,null,"Svar",null,null,null,null,null,null,null,{"$f":"IF(OR(W150:W153),\"Nej\",\"Ja\")","v":"Ja"},{"$f":"NOT(OR(X150:X153))","v":true}]
[null,null,null,null,null,null,null,null,null,null,"Bilagan medföljer anbudet",null,null,null,null,null,null,null,null,null,null,null,{"$f":"IF(AND(B150<>\"\",O150<>\"Ja\"),TRUE,FALSE)","v":false},{"$f":"IF(B150<>\"\",TRUE,FALSE)","v":false}]
[null,null,null,null,null,null,null,null,null,null,"Bilagan medföljer anbudet",null,null,null,null,null,null,null,null,null,null,null,{"$f":"IF(AND(B151<>\"\",O151<>\"Ja\"),TRUE,FALSE)","v":false},{"$f":"IF(B151<>\"\",TRUE,FALSE)","v":false}]
[null,null,null,null,null,null,null,null,null,null,"Bilagan medföljer anbudet",null,null,null,null,null,null,null,null,null,null,null,{"$f":"IF(AND(B152<>\"\",O152<>\"Ja\"),TRUE,FALSE)","v":false},{"$f":"IF(B152<>\"\",TRUE,FALSE)","v":false}]
[null,null,null,null,null,null,null,null,null,null,"Bilagan medföljer anbudet",null,null,null,null,null,null,null,null,null,null,null,{"$f":"IF(AND(B153<>\"\",O153<>\"Ja\"),TRUE,FALSE)","v":false},{"$f":"IF(B153<>\"\",TRUE,FALSE)","v":false}]
[]
[]
[null,"Övrig information",null,null,null,null,null,null,null,null,"Kontroll av kravuppfyllnad"]
[null,"Ange övriga specifika förutsättningar (tex ev budgetrestriktioner), förhållanden eller önskemål som kan vara viktiga för leverantören",null,null,null,null,null,null,null,null,"Kontroll av i fall alla uppgifter är ifyllda"]
[null,null,null,null,null,null,null,null,null,null,"Är alla uppgifter om kravuppfyllnad i fyllda?"]
[]
[null,null,null,null,null,null,null,null,null,null,{"$f":"IF(OR(W39:W93,W132:W170),\"Minst ett av de obligatoriska kraven är inte ifyllda eller besvarade med Nej\",\"\")","v":""}]
[null,null,null,null,null,null,null,null,null,null,null,null,null,null,null,null,null,null,null,null,null,null,{"$f":"OR(W48:W157)","v":false}]
[]
[null,null,null,null,null,null,null,null,null,null,{"$f":"IF('3 Detaljerad kravspec. '!$K$127,\"Minst ett av de obligatoriska kraven i bladet 3 Detaljerad kravspec. är inte ifyllda eller besvarde med Nej\",\"\")","v":""}]
[]
[]
[]
[]
[null,"Bilagor från avropande organisation (kontraktshandlingar framgår av flik 3)",null,null,null,null,null,null,null,null,"Bilagor från leverantören"]
[null,"Specificera ev. bilagor som medföljer denna avropsförfrågan",null,null,null,null,null,null,null,null,"Specificera ev. bilagor som medföljer detta avropssvar"]
[]
[]
[]
[]
[]
[]
[null,"OBS! Spara inte blanketten i PDF-format. Då kan inte leverantörerna fylla i den. Lås blanketten med \"låsknappen\" nedan innan ni skickar blanketten till leverantörerna.",null,null,null,null,null,null,null,null,"Leverantören har lämnat begärda prisuppgifter som gäller för offererade varor och tjänster enligt ställda krav samt accepterar i övrigt kraven i avropsförfrågan och är införstådd med att samtliga lämnade uppgifter i avropssvaret är bindande\n"]
[]
[null,null,null,null,null,null,null,null,null,null,{"$f":"\"Leverantören intygar att avropssvaret är giltigt minst den tid som avropande organisation angett ovan. \"&CHAR(10)&\"(\"&TEXT(D33,\"ÅÅÅÅ-MM-DD\")&\")\"","v":"Leverantören intygar att avropssvaret är giltigt minst den tid som avropande organisation angett ovan. \n(1900-01-00)"}]
[null,null,null,null,null,null,null,null,null,null,"Ort, datum"]
[]
[]
[null,null,null,null,null,null,null,null,null,null,"Namn, befattning (behörig företrädare för leverantören)"]

{"sheet":"3 Detaljerad kravspec. ","index":2,"n_rows":128,"n_cols":13,"rows_kept":128,"cut":false,"hidden":false,"merged":[[87,1,87,3],[88,1,88,3],[89,1,89,3],[7,4,8,6],[59,1,59,3],[14,2,14,7],[84,1,84,3],[9,1,10,1],[15,2,15,7],[39,1,39,3],[40,1,40,3],[41,1,41,3],[25,1,25,3],[24,1,24,3],[38,1,38,3],[44,1,44,3],[105,1,105,2],[104,1,104,2],[99,1,99,2],[76,1,76,3],[77,1,77,3],[100,1,100,2],[101,1,101,2],[102,1,102,2],[103,1,103,2],[83,1,83,3],[97,2,97,7],[96,1,97,1],[96,2,96,7],[90,1,90,3],[85,1,85,3],[86,1,86,3],[43,1,43,3],[47,1,47,3],[3,5,4,8],[20,1,20,3],[21,1,21,3],[22,1,22,3],[23,1,23,3],[7,7,8,8],[18,1,18,3],[19,1,19,3],[14,8,15,8],[9,8,10,8],[34,8,35,8],[58,1,58,3],[53,1,54,1],[67,1,68,1],[60,1,60,3],[61,1,61,3],[79,1,79,3],[80,1,80,3],[67,8,68,8],[67,2,67,7],[68,2,68,7],[126,10,126,11],[6,14,6,17],[6,7,6,8],[53,2,53,7],[54,2,54,7],[96,8,97,8],[27,1,27,3],[56,1,56,3],[57,1,57,3],[70,1,70,3],[71,1,71,3],[72,1,72,3],[81,1,81,3],[82,1,82,3],[78,1,78,3],[73,1,73,3],[2,1,2,8],[3,1,4,3],[6,1,6,4],[14,1,15,1],[75,1,75,3],[34,1,35,1],[37,1,37,3],[46,1,46,3],[53,8,54,8],[17,1,17,3],[74,1,74,3],[42,1,42,3],[26,1,26,3],[45,1,45,3],[35,2,35,7],[34,2,34,7],[132,7,134,8],[119,1,119,2],[120,1,120,2],[111,1,112,1],[111,2,111,7],[111,8,112,8],[112,2,112,7],[114,1,114,2],[128,2,129,8],[115,1,115,2],[116,1,116,2],[117,1,117,2],[118,1,118,2]]}
[null,null,null,null,null,null,null,null,{"$f":"\"Diarienummer / Nummer: \"&'2 Specifikation'!E20","v":"Diarienummer / Nummer: "}]
[]
[null,"Detaljerad kravspecifikation"]
[null,"Instruktion till avropande organisation: \nGulmarkerade rutor fylls i av avropare innan avropsförfrågan skickas.",null,null,null,"Instruktion till leverantör:\nBlåmarkerade rutor fylls i av leverantören.\nLäs och kontrollera obligatoriska krav\nObservera att priser anges i LCC-kalkyl på flik 2. Specifikation"]
[]
[]
[null,"Myndighet/Organisation",null,null,null,null,null,"Leverantören"]
[null,null,null,null,{"$f":"IF(OR($L19:$L28,$L39:$L48,$L72:$L91,$L58:$L62,L101:L106),\"Minst ett av börkraven nedan är inte poängsatt\",\"\")","v":""},null,null,{"$f":"IF(K127,\"Minst ett av de obligatoriska kraven nedan är inte ifyllda eller besvarde med Nej\",\"\")","v":""}]
[null,"a. Tilldelningskriterie LCC kostnad",null,null,null,null,null,null,null,null,{"$f":"IF(OR(K19:K126),\"Nej\",\"Ja\")","v":"Ja"},{"$f":"IF(OR(L19:L126),\"Nej\",\"Ja\")","v":"Ja"},{"$f":"IF(OR(M19:M107),\"Ja\",\"Nej\")","v":"Nej"}]
[null,"LCC kostnad\n30-100%",null,null,null,null,null,"Ange viktning i %"]
[]
[]
[]
[null,"b. Kravområde Säkerhet",null,null,null,null,null,null,"Ange viktning i %"]
[null,"Säkerhet\n0-70%","Avropande organisations specifika beskrivning av området"]
[]
[null,null,null,null,null,null,null,null,{"$f":"IF(AND(I15>0,COUNTIF(E19:E28,\"Bör-krav\")<1),\"Bör-krav saknas nedan, viktning ska endast göras i fall man har bör-krav\",\"\")","v":""}]
[null,"Specifikation av krav (t.ex. krav på alkolås, högre Euro NCAP poäng)",null,null,"Typ av krav","Poängvärde\n(vid börkrav)",null,"Kravuppfyllnad","Svar","Poäng","Ska-krav uppfyllt","Bör krav finns","Ska-krav finns"]
[null,null,null,null,"Inget krav",null,null,{"$f":"IF(E19=\"Inget krav\",\"\",\"Kravet uppfyllt?\")","v":""},null,{"$f":"IF(E19=\"Börkrav\",IF(I19=\"Ja\",F19,0),0)","v":0},{"$f":"IF(AND(E19=\"Ska-krav\",I19<>\"Ja\"),TRUE,FALSE)","v":false},{"$f":"IF(AND(E19=\"Bör-krav\",F19<=0),TRUE,FALSE)","v":false},{"$f":"IF(E19=\"Ska-krav\",TRUE,FALSE)","v":false}]
[null,null,null,null,"Inget krav",null,null,"",null,{"$f":"IF(E20=\"Börkrav\",IF(I20=\"Ja\",F20,0),0)","v":0},false,false,false]
[null,null,null,null,"Inget krav",null,null,"",null,{"$f":"IF(E21=\"Börkrav\",IF(I21=\"Ja\",F21,0),0)","v":0},false,false,false]
[null,null,null,null,"Inget krav",null,null,"",null,0,false,false,false]
[null,null,null,null,"Inget krav",null,null,"",null,0,false,false,false]
[null,null,null,null,"Inget krav",null,null,"",null,0,false,false,false]
[null,null,null,null,"Inget krav",null,null,"",null,0,false,false,false]
[null,null,null,null,"Inget krav",null,null,"",null,0,false,false,false]
[null,null,null,null,"Inget krav",null,null,"",null,0,false,false,false]
[null,null,null,null,"Inget krav",null,null,{"$f":"IF(E28=\"Inget krav\",\"\",\"Kravet uppfyllt?\")","v":""},null,0,false,false,false]
[]
[null,"Summa poäng för området: ",null,null,"Max poäng: ",{"$f":"SUM(F19:F29)","v":0},null,"Erhållna poäng: ",{"$f":"SUMIF(I18:I28,\"Ja\",F18:F28)","v":0},null,{"$f":"IF(OR(K19:K28),\"Nej\",\"Ja\")","v":"Ja"},{"$f":"IF(OR(L19:L28),\"Nej\",\"Ja\")","v":"Ja"},{"$f":"IF(OR(M19:M28),\"Ja\",\"Nej\")","v":"Nej"}]
[null,"Beräknat kostnadsavdrag för uppfyllda kriterier",null,null,null,null,null,null,{"$f":"IF(I30=0,0,I30/F30*I15*'2 Specifikation'!$N$118)","v":0}]
[]
[]
[null,"c. Kravområde Miljö",null,null,null,null,null,null,"Ange viktning i %"]
[null,"Miljö\n0-70%","Avropande organisations specifika beskrivning av området"]
[]
[null,null,null,null,null,null,null,null,{"$f":"IF(AND(I35>0,COUNTIF(E39:E48,\"Bör-krav\")<1),\"Bör-krav saknas nedan, viktning ska endast göras i fall man har bör-krav\",\"\")","v":""}]
[null,"Specifikation av krav (t.ex. krav på lägsta CO2-utsläpp)",null,null,"Typ av krav","Poängvärde\n(vid börkrav)",null,"Kravuppfyllnad","Svar"]
[null,null,null,null,"Inget krav",null,null,{"$f":"IF(E39=\"Inget krav\",\"\",\"Kravet uppfyllt?\")","v":""},null,{"$f":"IF(E39=\"Börkrav\",IF(I39=\"Ja\",F39,0),0)","v":0},{"$f":"IF(AND(E39=\"Ska-krav\",I39<>\"Ja\"),TRUE,FALSE)","v":false},{"$f":"IF(AND(E39=\"Bör-krav\",F39<=0),TRUE,FALSE)","v":false},{"$f":"IF(E39=\"Ska-krav\",TRUE,FALSE)","v":false}]
[null,null,null,null,"Inget krav",null,null,"",null,0,false,false,false]
[null,null,null,null,"Inget krav",null,null,"",null,0,false,false,false]
[null,null,null,null,"Inget krav",null,null,"",null,0,false,false,false]
[null,null,null,null,"Inget krav",null,null,"",null,0,false,false,false]
[null,null,null,null,"Inget krav",null,null,"",null,0,false,false,false]
[null,null,null,null,"Inget krav",null,null,"",null,0,false,false,false]
[null,null,null,null,"Inget krav",null,null,"",null,0,false,false,false]
[null,null,null,null,"Inget krav",null,null,{"$f":"IF(E47=\"Inget krav\",\"\",\"Kravet uppfyllt?\")","v":""},null,0,false,false,false]
[null,null,null,null,"Inget krav",null,null,{"$f":"IF(E48=\"Inget krav\",\"\",\"Kravet uppfyllt?\")","v":""},null,0,false,false,false]
[]
[null,"Summa poäng för området: ",null,null,"Max poäng: ",{"$f":"SUM(F39:F49)","v":0},null,"Erhållna poäng: ",{"$f":"SUMIF(I38:I48,\"Ja\",F38:F48)","v":0},null,{"$f":"IF(OR(K39:K48),\"Nej\",\"Ja\")","v":"Ja"},{"$f":"IF(OR(L39:L48),\"Nej\",\"Ja\")","v":"Ja"},{"$f":"IF(OR(M39:M48),\"Ja\",\"Nej\")","v":"Nej"}]
[null,"Beräknat kostnadsavdrag för uppfyllda kriterier",null,null,null,null,null,null,{"$f":"IF(I50=0,0,I50/F50*I35*'2 Specifikation'!$N$118)","v":0}]
[]
[null,"d. Kravområde Garantier",null,null,null,null,null,null,"Ange viktning i %"]
[null,"Garantier\n0-70%","Avropande organisations specifika beskrivning av området"]
[]
[null,null,null,null,null,null,null,null,{"$f":"IF(AND(I54>0,COUNTIF(E58:E62,\"Bör-krav\")<1),\"Bör-krav saknas nedan, viktning ska endast göras i fall man har bör-krav\",\"\")","v":""}]
[null,"Specifikation av krav (t.ex. minst antal års nybilsgaranti / rostskyddsgaranti / vagnskadegaranti)",null,null,"Typ av krav","Poängvärde\n(vid börkrav)",null,"Kravuppfyllnad","Svar"]
[null,null,null,null,"Inget krav",null,null,{"$f":"IF(E58=\"Inget krav\",\"\",\"Kravet uppfyllt?\")","v":""},null,{"$f":"IF(E58=\"Börkrav\",IF(I58=\"Ja\",F58,0),0)","v":0},{"$f":"IF(AND(E58=\"Ska-krav\",I58<>\"Ja\"),TRUE,FALSE)","v":false},{"$f":"IF(AND(E58=\"Bör-krav\",F58<=0),TRUE,FALSE)","v":false},{"$f":"IF(E58=\"Ska-krav\",TRUE,FALSE)","v":false}]
[null,null,null,null,"Inget krav",null,null,{"$f":"IF(E59=\"Inget krav\",\"\",\"Kravet uppfyllt?\")","v":""},null,{"$f":"IF(E59=\"Börkrav\",IF(I59=\"Ja\",F59,0),0)","v":0},{"$f":"IF(AND(E59=\"Ska-krav\",I59<>\"Ja\"),TRUE,FALSE)","v":false},{"$f":"IF(AND(E59=\"Bör-krav\",F59<=0),TRUE,FALSE)","v":false},{"$f":"IF(E59=\"Ska-krav\",TRUE,FALSE)","v":false}]
[null,null,null,null,"Inget krav",null,null,{"$f":"IF(E60=\"Inget krav\",\"\",\"Kravet uppfyllt?\")","v":""},null,{"$f":"IF(E60=\"Börkrav\",IF(I60=\"Ja\",F60,0),0)","v":0},{"$f":"IF(AND(E60=\"Ska-krav\",I60<>\"Ja\"),TRUE,FALSE)","v":false},{"$f":"IF(AND(E60=\"Bör-krav\",F60<=0),TRUE,FALSE)","v":false},{"$f":"IF(E60=\"Ska-krav\",TRUE,FALSE)","v":false}]
[null,null,null,null,"Inget krav",null,null,{"$f":"IF(E61=\"Inget krav\",\"\",\"Kravet uppfyllt?\")","v":""},null,{"$f":"IF(E61=\"Börkrav\",IF(I61=\"Ja\",F61,0),0)","v":0},{"$f":"IF(AND(E61=\"Ska-krav\",I61<>\"Ja\"),TRUE,FALSE)","v":false},{"$f":"IF(AND(E61=\"Bör-krav\",F61<=0),TRUE,FALSE)","v":false},{"$f":"IF(E61=\"Ska-krav\",TRUE,FALSE)","v":false}]
[null,null,null,null,"Inget krav",null,null,{"$f":"IF(E62=\"Inget krav\",\"\",\"Kravet uppfyllt?\")","v":""},null,{"$f":"IF(E62=\"Börkrav\",IF(I62=\"Ja\",F62,0),0)","v":0},{"$f":"IF(AND(E62=\"Ska-krav\",I62<>\"Ja\"),TRUE,FALSE)","v":false},{"$f":"IF(AND(E62=\"Bör-krav\",F62<=0),TRUE,FALSE)","v":false},{"$f":"IF(E62=\"Ska-krav\",TRUE,FALSE)","v":false}]
[]
[null,"Summa poäng för området: ",null,null,"Max poäng: ",{"$f":"SUM(F57:F63)","v":0},null,"Erhållna poäng: ",{"$f":"SUMIF(I57:I62,\"Ja\",F57:F62)","v":0},null,{"$f":"IF(OR(K58:K62),\"Nej\",\"Ja\")","v":"Ja"},{"$f":"IF(OR(L58:L62),\"Nej\",\"Ja\")","v":"Ja"},{"$f":"IF(OR(M58:M62),\"Ja\",\"Nej\")","v":"Nej"}]
[null,"Beräknat kostnadsavdrag för uppfyllda kriterier",null,null,null,null,null,null,{"$f":"IF(I64=0,0,I64/F64*I54*'2 Specifikation'!$N$118)","v":0}]
[]
[null,"e. Kravområde Teknik och funktioner",null,null,null,null,null,null,"Ange viktning i %"]
[null,"Funktion\n0-70%","Avropande organisations specifika beskrivning av området"]
[]
[null,null,null,null,null,null,null,null,{"$f":"IF(AND(I68>0,COUNTIF(E72:E91,\"Bör-krav\")<1),\"Bör-krav saknas nedan, viktning ska endast göras i fall man har bör-krav\",\"\")","v":""}]
[null,"Specifikation av krav (t.ex. fordonsklass, dragförmåga släp, markfrigång, 4WD)",null,null,"Typ av krav","Poängvärde\n(vid börkrav)",null,"Kravuppfyllnad","Svar"]
[null,null,null,null,"Inget krav",null,null,{"$f":"IF(E72=\"Inget krav\",\"\",\"Kravet uppfyllt?\")","v":""},null,{"$f":"IF(E72=\"Börkrav\",IF(I72=\"Ja\",F72,0),0)","v":0},{"$f":"IF(AND(E72=\"Ska-krav\",I72<>\"Ja\"),TRUE,FALSE)","v":false},{"$f":"IF(AND(E72=\"Bör-krav\",F72<=0),TRUE,FALSE)","v":false},{"$f":"IF(E72=\"Ska-krav\",TRUE,FALSE)","v":false}]
[null,null,null,null,"Inget krav",null,null,{"$f":"IF(E73=\"Inget krav\",\"\",\"Kravet uppfyllt?\")","v":""},null,{"$f":"IF(E73=\"Börkrav\",IF(I73=\"Ja\",F73,0),0)","v":0},false,false,false]
[null,null,null,null,"Inget krav",null,null,{"$f":"IF(E74=\"Inget krav\",\"\",\"Kravet uppfyllt?\")","v":""},null,{"$f":"IF(E74=\"Börkrav\",IF(I74=\"Ja\",F74,0),0)","v":0},false,false,false]
[null,null,null,null,"Inget krav",null,null,{"$f":"IF(E75=\"Inget krav\",\"\",\"Kravet uppfyllt?\")","v":""},null,0,false,false,false]
[null,null,null,null,"Inget krav",null,null,"",null,0,false,false,false]
[null,null,null,null,"Inget krav",null,null,"",null,0,false,false,false]
[null,null,null,null,"Inget krav",null,null,"",null,0,false,false,false]
[null,null,null,null,"Inget krav",null,null,"",null,0,false,false,false]
[null,null,null,null,"Inget krav",null,null,"",null,{"$f":"IF(E80=\"Börkrav\",IF(I80=\"Ja\",F80,0),0)","v":0},{"$f":"IF(AND(E80=\"Ska-krav\",I80<>\"Ja\"),TRUE,FALSE)","v":false},{"$f":"IF(AND(E80=\"Bör-krav\",F80<=0),TRUE,FALSE)","v":false},{"$f":"IF(E80=\"Ska-krav\",TRUE,FALSE)","v":false}]
[null,null,null,null,"Inget krav",null,null,"",null,0,false,false,false]
[null,null,null,null,"Inget krav",null,null,"",null,0,false,false,false]
[null,null,null,null,"Inget krav",null,null,"",null,0,false,false,false]
[null,null,null,null,"Inget krav",null,null,"",null,0,false,false,false]
[null,null,null,null,"Inget krav",null,null,{"$f":"IF(E85=\"Inget krav\",\"\",\"Kravet uppfyllt?\")","v":""},null,0,false,false,false]
[null,null,null,null,"Inget krav",null,null,"",null,0,false,false,false]
[null,null,null,null,"Inget krav",null,null,"",null,0,false,false,false]
[null,null,null,null,"Inget krav",null,null,"",null,0,false,false,false]
[null,null,null,null,"Inget krav",null,null,"",null,0,false,false,false]
[null,null,null,null,"Inget krav",null,null,"",null,0,false,false,false]
[null,null,null,null,"Inget krav",null,null,"",null,{"$f":"IF(E91=\"Börkrav\",IF(I91=\"Ja\",F91,0),0)","v":0},{"$f":"IF(AND(E91=\"Ska-krav\",I91<>\"Ja\"),TRUE,FALSE)","v":false},{"$f":"IF(AND(E91=\"Bör-krav\",F91<=0),TRUE,FALSE)","v":false},{"$f":"IF(E91=\"Ska-krav\",TRUE,FALSE)","v":false}]
[]
[null,"Summa poäng för området: ",null,null,"Max poäng: ",{"$f":"SUM(F72:F92)","v":0},null,"Erhållna poäng: ",{"$f":"SUMIF(I72:I91,\"Ja\",F72:F91)","v":0},null,{"$f":"IF(OR(K72:K91),\"Nej\",\"Ja\")","v":"Ja"},{"$f":"IF(OR(L72:L91),\"Nej\",\"Ja\")","v":"Ja"},{"$f":"IF(OR(M72:M91),\"Ja\",\"Nej\")","v":"Nej"}]
[null,"Beräknat kostnadsavdrag för uppfyllda kriterier",null,null,null,null,null,null,{"$f":"IF(I93=0,0,I93/F93*I68*'2 Specifikation'!$N$118)","v":0}]
[]
[null,"f. Kravområde Leveranstid",null,null,null,null,null,null,"Ange viktning i %"]
[null,"Leveranstid\n0-70%","Avropande organisations specifika beskrivning av området"]
[]
[null,null,null,null,null,null,null,null,{"$f":"IF(AND(I97>0,COUNTIF(E101:E106,\"Bör-krav\")<1),\"Bör-krav saknas nedan, viktning ska endast göras i fall man har bör-krav\",\"\")","v":""}]
[null,"Specifikation av krav (t.ex. leverans senast x antal veckor efter beställning)",null,"Stationeringsort","Typ av krav","Poängvärde\n(vid börkrav)",null,"Kravuppfyllnad","Svar"]
[null,null,null,null,"Inget krav",null,null,{"$f":"IF(E101=\"Inget krav\",\"\",\"Kravet uppfyllt?\")","v":""},null,{"$f":"IF(E101=\"Börkrav\",IF(I101=\"Ja\",F101,0),0)","v":0},{"$f":"IF(AND(E101=\"Ska-krav\",I101<>\"Ja\"),TRUE,FALSE)","v":false},{"$f":"IF(AND(E101=\"Bör-krav\",F101<=0),TRUE,FALSE)","v":false},{"$f":"IF(E101=\"Ska-krav\",TRUE,FALSE)","v":false}]
[null,null,null,null,"Inget krav",null,null,"",null,0,false,false,false]
[null,null,null,null,"Inget krav",null,null,"",null,0,false,false,false]
[null,null,null,null,"Inget krav",null,null,"",null,0,false,false,false]
[null,null,null,null,"Inget krav",null,null,"",null,0,false,false,false]
[null,null,null,null,"Inget krav",null,null,"",null,0,false,false,false]
[]
[null,"Summa poäng för området: ",null,null,"Max poäng: ",{"$f":"SUM(F100:F107)","v":0},null,"Erhållna poäng: ",{"$f":"SUMIF(I100:I106,\"Ja\",F100:F106)","v":0},null,{"$f":"IF(OR(K101:K106),\"Nej\",\"Ja\")","v":"Ja"},{"$f":"IF(OR(L101:L106),\"Nej\",\"Ja\")","v":"Ja"},{"$f":"IF(OR(M101:M106),\"Ja\",\"Nej\")","v":"Nej"}]
[null,"Beräknat kostnadsavdrag för uppfyllda kriterier",null,null,null,null,null,null,{"$f":"IF(I108=0,0,I108/F108*I97*'2 Specifikation'!$N$118)","v":0}]
[]
[null,"g. Kravområde Serviceställen",null,null,null,null,null,null,"Ange viktning i %"]
[null,"Serviceställen\n0-70%","Avropande organisations specifika beskrivning av området"]
[]
[null,null,null,null,null,null,null,null,{"$f":"IF(AND(I112>0,COUNTIF(E116:E121,\"Bör-krav\")<1),\"Bör-krav saknas nedan, viktning ska endast göras i fall man har bör-krav\",\"\")","v":""}]
[null,"Specifikation av krav (t.ex. närhet till serviceställe)",null,"Stationeringsort","Typ av krav","Poängvärde\n(vid börkrav)",null,"Kravuppfyllnad","Svar"]
[null,null,null,null,"Inget krav",null,null,{"$f":"IF(E116=\"Inget krav\",\"\",\"Kravet uppfyllt?\")","v":""},null,{"$f":"IF(E116=\"Börkrav\",IF(I116=\"Ja\",F116,0),0)","v":0},{"$f":"IF(AND(E116=\"Ska-krav\",I116<>\"Ja\"),TRUE,FALSE)","v":false},{"$f":"IF(AND(E116=\"Bör-krav\",F116<=0),TRUE,FALSE)","v":false},{"$f":"IF(E116=\"Ska-krav\",TRUE,FALSE)","v":false}]
[null,null,null,null,"Inget krav",null,null,"",null,0,false,false,false]
[null,null,null,null,"Inget krav",null,null,"",null,0,false,false,false]
[null,null,null,null,"Inget krav",null,null,"",null,0,false,false,false]
[null,null,null,null,"Inget krav",null,null,"",null,0,false,false,false]
[null,null,null,null,"Inget krav",null,null,"",null,0,false,false,false]
[]
[null,"Summa poäng för området: ",null,null,"Max poäng: ",{"$f":"SUM(F115:F122)","v":0},null,"Erhållna poäng: ",{"$f":"SUMIF(I115:I121,\"Ja\",F115:F121)","v":0},null,{"$f":"IF(OR(K116:K121),\"Nej\",\"Ja\")","v":"Ja"},{"$f":"IF(OR(L116:L121),\"Nej\",\"Ja\")","v":"Ja"},{"$f":"IF(OR(M116:M121),\"Ja\",\"Nej\")","v":"Nej"}]
[null,"Beräknat kostnadsavdrag för uppfyllda kriterier",null,null,null,null,null,null,{"$f":"IF(I123=0,0,I123/F123*I112*'2 Specifikation'!$N$118)","v":0}]
[]
[null,"Summa kriterievikt:",null,null,null,null,null,null,{"$f":"(I10+I97+I54+I68+I35+I15+I112)","v":0}]
[null,null,{"$f":"IF(OR(K19:K108),\"Minst ett av de obligatoriska kraven ovan är inte ifyllda eller besvarde med Nej\",\"\")","v":""},null,null,null,null,null,{"$f":"IF(I126<>1,\"OBS! total kriterievikt måste summera till 100%\",\"\")","v":"OBS! total kriterievikt måste summera till 100%"},null,{"$f":"OR(K19:K123)","v":false}]
[null,null,{"$f":"IF(OR($L19:$L28,$L39:$L48,$L72:$L91,$L58:$L62,L101:L106),\"Minst ett av börkraven ovan är inte poängsatt\",\"\")","v":""}]

{"sheet":"4 Avtalstecknande","index":3,"n_rows":37,"n_cols":4,"rows_kept":37,"cut":false,"hidden":false,"merged":[[17,1,17,3],[18,1,19,3],[3,1,3,3],[5,1,5,3],[15,1,15,3],[9,1,9,3],[22,1,22,3],[41,1,41,3],[38,1,38,3],[39,1,39,3],[40,1,40,3],[37,1,37,3]]}
[null,null,null,{"$f":"\"Avrop nr: \"&'2 Specifikation'!E20","v":"Avrop nr: "}]
[]
[null,"Kontrakt"]
[null,{"$f":"\"Detta kontrakt reglerar avrop från ramavtalsområde \"&'1 Försättssida'!A14&\", \"&'1 Försättssida'!A16","v":"Detta kontrakt reglerar avrop från ramavtalsområde Tjänstefordon 2019, 23.2-3666-19"}]
[null,"Kontraktets omfattning"]
[null,"Leveransens omfattning och villkor framgår av Kontraktet med tillhörande bilagor samt Ramavtalet. Om handlingarna innehåller motstridiga uppgifter ska handlingarna gälla i nedan nämnd ordning om inte omständigheterna uppenbarligen föranleder annat."]
[null,"1. Säkerhetsskyddsavtal"]
[null,"2. Personuppgiftsbiträdesavtal"]
[null,"3. Skriftliga ändringar och tillägg till Kontrakt"]
[null,"4. Kontrakt med bilagor, inkl. Allmänna villkor"]
[null,"5. Eventuellt kompletterande Avropsförfrågan"]
[null,"6. Avropsförfrågan med bilagor "]
[null,"7. Eventuella tillåtna kompletteringar av Avropssvar"]
[null,"8. Avropssvar med bilagor"]
[]
[null,"Innehåller leverantörens avropssvar uppgifter som inte efterfrågats i avropsblanketten är dessa uppgifter giltiga endast om en skriftlig överenskommelse träffas särskilt angående detta. Hänvisning till leverantörens egna allmänna villkor eller motsvarande är endast giltiga om en särskild överenskommelse avseende detta tecknas."]
[]
[null,"Specifika Kontraktsvillkor (alternativt enl separat bilaga)"]
[]
[]
[]
[null,"Underskrift"]
[null,"Underskriften avser ett kontraktstecknande. Efter undertecknande av bägge parter utgör denna blankett tillsammans med ramavtalets generella och specifika avtalsvillkor enligt ovan ett kontrakt mellan parterna.\n\nDetta kontrakt har upprättats i två exemplar varav parterna tagit var sitt."]
[]
[null,"Avropande organisation",null,"Leverantör / Återförsäljare"]
[null,{"$f":"'2 Specifikation'!B14","v":0}]
[null,"Org.nr.",null,"Org.nr."]
[null,{"$f":"'2 Specifikation'!H14","v":0}]
[]
[null,"Ort, datum",null,"Ort, datum"]
[]
[]
[null,"Namn, befattning \n(behörig företrädare för avropande organisation)",null,"Namn, befattning \n(behörig företrädare för leverantören)"]
[]
[]
[]
[null,"Eventuella bilagor till kontraktet"]

{"sheet":"Admin","index":4,"n_rows":32,"n_cols":8,"rows_kept":32,"cut":false,"hidden":true,"merged":[]}
["Delområden"]
["Personbilar (fordonsklass A-D)"]
["Transportfordon (fordonsklass E-H)"]
[null,2]
[null,{"$f":"IF(B4>1,\"Tbl_Fordonsklass2\",\"Tbl_Fordonsklass\")","v":"Tbl_Fordonsklass2"}]
[]
["Fordonsklass A-D",null,null,"UKey",null,null,"Nya miljöbilsregler för 2013"]
["A: Personbil med tjänstevikt upp till 1200 kg.",0,null,"pkey",null,null,"El/Elhybrid",150]
["B: Personbil med tjänstevikt mellan 1201 - 1450 kg.",1201,null,"Wkey",null,null,"Etanol",150]
["C: Personbil med tjänstevikt mellan 1451 - 1600 kg.",1451,null,"YColor"," ",null,"Gas",150]
["D: Personbil med tjänstevikt från 1601 kg eller mer.",1601,null,null,null,null,"Diesel",95]
[" ",null,null,null,null,null,"Bensin",95]
[" "]
[" ",null,null,null,null,null,"RestType",1]
[" "]
[]
[null,{"$f":"MATCH(Input43,Admin!A8:A15,0)","v":{"$error":"#REF!"}}]
[null,{"$f":"MATCH('2 Specifikation'!#REF!,Admin!B8:B11,1)","v":{"$error":"#REF!"}}]
[null,{"$f":"IF(B17<=4,IF(B17=B18,TRUE,FALSE),TRUE)","v":{"$error":"#REF!"}}]
[null,{"$f":"IF(ViktKontroll,\"Ja\",\"Nej\")","v":{"$error":"#REF!"}}]
[]
[null,null,null,null,null,"A: Personbil med tjänstevikt upp till 1200 kg."]
[null,null,null,null,null,"B: Personbil med tjänstevikt mellan 1201 - 1450 kg."]
["Fordonsklass E-H",null,null,null,null,"C: Personbil med tjänstevikt mellan 1451 - 1600 kg."]
["E: Minibussar med minst 6 passagerarplatser utöver förarplatsen.",null,null,null,null,"D: Personbil med tjänstevikt från 1601 kg eller mer."]
["F: Lätt lastbil med flak eller chassi med eller utan påbyggnad.",null,null,null,null,"E: Minibussar med minst 6 passagerarplatser utöver förarplatsen."]
["G: Pick-up med 4WD och förhöjd markfrigång.",null,null,null,null,"F: Lätt lastbil med flak eller chassi med eller utan påbyggnad."]
["H: Lätta lastbilar med skåp.",null,null,null,null,"G: Pick-up med 4WD och förhöjd markfrigång."]
[null,null,null,null,null,"H: Lätta lastbilar med skåp."]
[null,null,null,null,null,null,"Personbilar (fordonsklass A-D)"]
[null,null,null,null,null,null,"Förmånsbilar (fordonsklass A-D)"]
[null,null,null,null,null,null,"Transportfordon (fordonsklass E-H)"]

{"sheet":"SysAdmin","index":5,"n_rows":9,"n_cols":5,"rows_kept":9,"cut":false,"hidden":true,"merged":[]}
["LockStatus",false]
["UKey","Förvaltning21",null,2,{"$f":"INDEX(E3:E5,D2)","v":"Avroppsblanketten är nu upplåst, klicka här för att låsa avropsblanketten."}]
["pkey","Förvaltning21",null,null,"Adminläge! Klicka här för att låsa vita celler."]
["Wkey","Förvaltning21","RGB",null,"Avroppsblanketten är nu upplåst, klicka här för att låsa avropsblanketten."]
["YColor"," ","255, 255, 153",null,"Avroppsblanketten är nu låst, klicka här för att låsa upp avropsblanketten."]
[null,null,"204, 255, 255"]
[null,null,"150, 150, 150",null,"Grund för tilldelning av kontrakt & Utvärderingsmodell"]
[null,null,"204, 255, 204",null,2]
[null,null,"250, 191, 143",null,"AltFALSE"]